[Event "Late-Titled-Tuesday-Blitz-October-24-2023"]
[Site "Chess.com"]
[Date "2023.10.24"]
[Round "2"]
[White "matagordo"]
[Black "BasilSmash"]
[Result "0-1"]
[WhiteElo "2290"]
[BlackElo "2654"]
[TimeControl "180+1"]
[EndTime "14:18:58 PDT"]
[Termination "BasilSmash won by checkmate"]

1. d4 {[%clk 0:03:00.9]} 1... d5 {[%clk 0:02:58.7]} 2. Bf4 {[%clk 0:03:01.5]}
2... Nf6 {[%clk 0:02:53.3]} 3. e3 {[%clk 0:03:01.8]} 3... e6 {[%clk 0:02:50.9]}
4. Nf3 {[%clk 0:03:02.1]} 4... Bd6 {[%clk 0:02:51.1]} 5. Ne5 {[%clk 0:03:02.8]}
5... O-O {[%clk 0:02:48.5]} 6. Nd2 {[%clk 0:03:02.5]} 6... b6 {[%clk 0:02:46.5]}
7. c3 {[%clk 0:02:57.9]} 7... c5 {[%clk 0:02:43.5]} 8. Bd3 {[%clk 0:02:54.9]}
8... Ba6 {[%clk 0:02:42.2]} 9. Bc2 {[%clk 0:02:55.2]} 9... Qc7 {[%clk
0:02:35.5]} 10. Bg3 {[%clk 0:02:43.6]} 10... Nc6 {[%clk 0:02:28.9]} 11. f4
{[%clk 0:02:40.5]} 11... Ne7 {[%clk 0:02:24.6]} 12. Qf3 {[%clk 0:02:30]} 12...
Nf5 {[%clk 0:02:21.6]} 13. Bf2 {[%clk 0:02:29.5]} 13... Be7 {[%clk 0:02:20.5]}
14. g4 {[%clk 0:02:29.2]} 14... Nd6 {[%clk 0:02:20.7]} 15. g5 {[%clk 0:02:24.3]}
15... Nfe4 {[%clk 0:02:20.8]} 16. Nxe4 {[%clk 0:02:20.2]} 16... Nxe4 {[%clk
0:02:21.7]} 17. Bxe4 {[%clk 0:02:18.2]} 17... dxe4 {[%clk 0:02:22.6]} 18. Qg3
{[%clk 0:01:59.4]} 18... Bd6 {[%clk 0:02:04.8]} 19. h4 {[%clk 0:01:56]} 19...
Bxe5 {[%clk 0:02:02.7]} 20. fxe5 {[%clk 0:01:56.9]} 20... Bd3 {[%clk 0:02:01.4]}
21. h5 {[%clk 0:01:53.9]} 21... b5 {[%clk 0:01:55.2]} 22. h6 {[%clk 0:01:50.2]}
22... g6 {[%clk 0:01:55.3]} 23. Qf4 {[%clk 0:01:47.7]} 23... Qe7 {[%clk
0:01:54.2]} 24. dxc5 {[%clk 0:01:43.5]} 24... Rfd8 {[%clk 0:01:51.8]} 25. Qf6
{[%clk 0:01:24.6]} 25... Qxf6 {[%clk 0:01:49.7]} 26. exf6 {[%clk 0:01:25.1]}
26... a5 {[%clk 0:01:48]} 27. Bg3 {[%clk 0:01:25.2]} 27... Rd5 {[%clk 0:01:46]}
28. Bf4 {[%clk 0:01:18]} 28... Rxc5 {[%clk 0:01:46.1]} 29. Kf2 {[%clk 0:01:00]}
29... Rf5 {[%clk 0:01:41.9]} 30. Kg2 {[%clk 0:00:21.1]} 30... e5 {[%clk
0:01:39.2]} 31. Bg3 {[%clk 0:00:21.3]} 31... Rxg5 {[%clk 0:01:37.8]} 32. a4
{[%clk 0:00:19.1]} 32... Rf5 {[%clk 0:01:23.7]} 33. axb5 {[%clk 0:00:18.1]}
33... Bxb5 {[%clk 0:01:18.3]} 34. Rhc1 {[%clk 0:00:07.1]} 34... Bd3 {[%clk
0:01:15.9]} 35. c4 {[%clk 0:00:07.2]} 35... Rxf6 {[%clk 0:01:09.9]} 36. Bxe5
{[%clk 0:00:06.7]} 36... Rc6 {[%clk 0:01:10]} 37. c5 {[%clk 0:00:06.2]} 37... f6
{[%clk 0:01:10.3]} 38. Bd4 {[%clk 0:00:06.1]} 38... Kf7 {[%clk 0:01:08]} 39. Ra3
{[%clk 0:00:06]} 39... Ke6 {[%clk 0:01:05.4]} 40. Rca1 {[%clk 0:00:06.4]} 40...
Rca6 {[%clk 0:01:04.9]} 41. c6 {[%clk 0:00:03.1]} 41... Rxc6 {[%clk 0:00:56.5]}
42. Rxa5 {[%clk 0:00:02.9]} 42... Rac8 {[%clk 0:00:53.8]} 43. Ra6 {[%clk
0:00:02.7]} 43... g5 {[%clk 0:00:48.4]} 44. Rxc6+ {[%clk 0:00:02.6]} 44... Rxc6
{[%clk 0:00:49.3]} 45. Ra8 {[%clk 0:00:02.2]} 45... Kf5 {[%clk 0:00:42.1]} 46.
Rg8 {[%clk 0:00:02.6]} 46... Kg4 {[%clk 0:00:41.4]} 47. Rg7 {[%clk 0:00:02.7]}
47... Rc2+ {[%clk 0:00:40.6]} 48. Kg1 {[%clk 0:00:02.8]} 48... f5 {[%clk
0:00:39.7]} 49. Rxh7 {[%clk 0:00:02.7]} 49... Kg3 {[%clk 0:00:37.1]} 50. Be5+
{[%clk 0:00:03]} 50... f4 {[%clk 0:00:35.7]} 51. exf4 {[%clk 0:00:03.4]} 51...
Rc1# {[%clk 0:00:35.8]} 0-1

[Event "Late-Titled-Tuesday-Blitz-October-24-2023"]
[Site "Chess.com"]
[Date "2023.10.24"]
[Round "2"]
[White "Byniolus"]
[Black "stasOR4ik"]
[Result "1-0"]
[WhiteElo "2795"]
[BlackElo "2378"]
[TimeControl "180+1"]
[EndTime "14:18:58 PDT"]
[Termination "Byniolus won on time"]

1. d4 {[%clk 0:03:00.9]} 1... d5 {[%clk 0:03:00.4]} 2. Bf4 {[%clk 0:03:00.5]}
2... Nf6 {[%clk 0:03:00.6]} 3. e3 {[%clk 0:03:01]} 3... c5 {[%clk 0:03:01.2]} 4.
c3 {[%clk 0:03:01.4]} 4... Nc6 {[%clk 0:03:01.5]} 5. Nd2 {[%clk 0:03:02.1]} 5...
e6 {[%clk 0:03:01.5]} 6. Ngf3 {[%clk 0:03:02.2]} 6... Bd6 {[%clk 0:02:53.8]} 7.
Bg3 {[%clk 0:03:02]} 7... a6 {[%clk 0:02:52]} 8. Bd3 {[%clk 0:03:01.7]} 8... O-O
{[%clk 0:02:50]} 9. Ne5 {[%clk 0:03:01]} 9... h6 {[%clk 0:02:36.1]} 10. f4
{[%clk 0:02:58]} 10... Nd7 {[%clk 0:02:31.8]} 11. O-O {[%clk 0:02:49.6]} 11...
f5 {[%clk 0:02:21.6]} 12. Ndf3 {[%clk 0:02:44.3]} 12... Ndxe5 {[%clk 0:02:16.9]}
13. fxe5 {[%clk 0:02:40.5]} 13... Be7 {[%clk 0:02:15.8]} 14. Rc1 {[%clk
0:01:54.9]} 14... b5 {[%clk 0:02:12.3]} 15. Kh1 {[%clk 0:01:53.5]} 15... Bd7
{[%clk 0:02:11.9]} 16. dxc5 {[%clk 0:01:38.4]} 16... Bxc5 {[%clk 0:02:09.4]} 17.
Nd4 {[%clk 0:01:38.9]} 17... Qc7 {[%clk 0:01:49.4]} 18. Bxf5 {[%clk 0:01:24.9]}
18... exf5 {[%clk 0:01:11.9]} 19. e6 {[%clk 0:01:25.8]} 19... Bd6 {[%clk
0:01:09.6]} 20. Bxd6 {[%clk 0:01:23.2]} 20... Qxd6 {[%clk 0:01:07.4]} 21. exd7
{[%clk 0:01:23.9]} 21... Qxd7 {[%clk 0:01:06.4]} 22. Qf3 {[%clk 0:01:15.2]}
22... Rf6 {[%clk 0:00:32.7]} 23. Rcd1 {[%clk 0:01:11.4]} 23... Ne5 {[%clk
0:00:26.5]} 24. Qg3 {[%clk 0:01:11.8]} 24... Nc4 {[%clk 0:00:26.5]} 25. b3
{[%clk 0:01:11.3]} 25... Nd6 {[%clk 0:00:23.6]} 26. Qe5 {[%clk 0:00:55.8]} 26...
Nf7 {[%clk 0:00:20.6]} 27. Qf4 {[%clk 0:00:50.7]} 27... g5 {[%clk 0:00:17.5]}
28. Qf3 {[%clk 0:00:47.3]} 28... Ne5 {[%clk 0:00:16.2]} 29. Qg3 {[%clk
0:00:38.9]} 29... Re8 {[%clk 0:00:16.4]} 30. h3 {[%clk 0:00:33.5]} 30... a5
{[%clk 0:00:13.5]} 31. Rd2 {[%clk 0:00:32]} 31... b4 {[%clk 0:00:13.4]} 32. cxb4
{[%clk 0:00:30.4]} 32... axb4 {[%clk 0:00:14.3]} 33. Rdf2 {[%clk 0:00:25.4]}
33... f4 {[%clk 0:00:08.5]} 34. exf4 {[%clk 0:00:21.3]} 34... Ng6 {[%clk
0:00:06.6]} 35. fxg5 {[%clk 0:00:18.7]} 35... Rxf2 {[%clk 0:00:06.9]} 36. Rxf2
{[%clk 0:00:19.6]} 36... h5 {[%clk 0:00:07.2]} 37. Nf5 {[%clk 0:00:17.5]} 37...
Re1+ {[%clk 0:00:05.4]} 38. Kh2 {[%clk 0:00:17.4]} 38... Qe6 {[%clk 0:00:03]}
39. Nh6+ {[%clk 0:00:10]} 1-0

[Event "Late-Titled-Tuesday-Blitz-October-24-2023"]
[Site "Chess.com"]
[Date "2023.10.24"]
[Round "2"]
[White "wild3000"]
[Black "ozates"]
[Result "1-0"]
[WhiteElo "2383"]
[BlackElo "2690"]
[TimeControl "180+1"]
[EndTime "14:18:58 PDT"]
[Termination "wild3000 won by resignation"]

1. e4 {[%clk 0:03:00]} 1... c5 {[%clk 0:02:58.2]} 2. Nf3 {[%clk 0:02:58.8]} 2...
Nc6 {[%clk 0:02:58.7]} 3. Bb5 {[%clk 0:02:55.3]} 3... e6 {[%clk 0:02:58.4]} 4.
Bxc6 {[%clk 0:02:51.5]} 4... bxc6 {[%clk 0:02:58.7]} 5. O-O {[%clk 0:02:51]}
5... Ne7 {[%clk 0:02:57.1]} 6. d3 {[%clk 0:02:48.5]} 6... Ng6 {[%clk 0:02:56.9]}
7. Nc3 {[%clk 0:02:45.5]} 7... e5 {[%clk 0:02:54.4]} 8. Ne2 {[%clk 0:02:39.9]}
8... Be7 {[%clk 0:02:52.7]} 9. Ng3 {[%clk 0:02:29.9]} 9... d6 {[%clk 0:02:52.1]}
10. h3 {[%clk 0:02:23.7]} 10... O-O {[%clk 0:02:51.7]} 11. Nf5 {[%clk
0:02:12.3]} 11... Bf6 {[%clk 0:02:34.9]} 12. Rb1 {[%clk 0:02:03.2]} 12... a5
{[%clk 0:02:33.5]} 13. a4 {[%clk 0:02:00.3]} 13... Ne7 {[%clk 0:02:32.8]} 14.
Ne3 {[%clk 0:01:57]} 14... g6 {[%clk 0:02:32.4]} 15. b3 {[%clk 0:01:53.2]} 15...
Bg7 {[%clk 0:02:32.2]} 16. Nc4 {[%clk 0:01:52.3]} 16... f5 {[%clk 0:02:30.5]}
17. Bg5 {[%clk 0:01:45.2]} 17... f4 {[%clk 0:02:26.8]} 18. Qd2 {[%clk
0:01:44.9]} 18... h6 {[%clk 0:02:25.8]} 19. Bxe7 {[%clk 0:01:44.6]} 19... Qxe7
{[%clk 0:02:26.7]} 20. Nxa5 {[%clk 0:01:43.5]} 20... Bd7 {[%clk 0:02:22.7]} 21.
Nc4 {[%clk 0:01:40.2]} 21... g5 {[%clk 0:02:22.9]} 22. Nb6 {[%clk 0:01:38.1]}
22... g4 {[%clk 0:02:20.4]} 23. hxg4 {[%clk 0:01:28.7]} 23... Bxg4 {[%clk
0:02:17.3]} 24. Nh2 {[%clk 0:01:29.1]} 24... Be6 {[%clk 0:02:15]} 25. Nxa8
{[%clk 0:01:27.8]} 25... Rxa8 {[%clk 0:02:15.9]} 26. a5 {[%clk 0:01:20.6]} 26...
Bf6 {[%clk 0:02:15.5]} 27. Ra1 {[%clk 0:01:18.9]} 27... Qg7 {[%clk 0:02:06.4]}
28. Qe2 {[%clk 0:01:14.5]} 28... Kh7 {[%clk 0:01:51.5]} 29. a6 {[%clk
0:01:08.9]} 29... Ra7 {[%clk 0:01:47]} 30. Qh5 {[%clk 0:01:06.1]} 30... Bf7
{[%clk 0:01:41.2]} 31. Qh3 {[%clk 0:01:04.8]} 31... h5 {[%clk 0:01:36.6]} 32.
Qf5+ {[%clk 0:00:52]} 32... Bg6 {[%clk 0:01:36]} 33. Qe6 {[%clk 0:00:52]} 33...
Be7 {[%clk 0:01:21.5]} 34. Rfb1 {[%clk 0:00:34.3]} 34... Bf7 {[%clk 0:01:18.2]}
35. Qf5+ {[%clk 0:00:34.4]} 35... Bg6 {[%clk 0:01:18.2]} 36. Qc8 {[%clk
0:00:34.3]} 36... Bh4 {[%clk 0:01:08]} 37. Nf3 {[%clk 0:00:30.4]} 37... Bf6
{[%clk 0:01:06.5]} 38. Qxc6 {[%clk 0:00:30]} 38... Be7 {[%clk 0:00:58.5]} 39. b4
{[%clk 0:00:29.7]} 39... Bf7 {[%clk 0:00:51.9]} 40. bxc5 {[%clk 0:00:28.9]}
40... Be6 {[%clk 0:00:51.8]} 41. Kf1 {[%clk 0:00:28.1]} 41... Bd7 {[%clk
0:00:42.2]} 42. Qb6 {[%clk 0:00:25.5]} 42... Ra8 {[%clk 0:00:42.5]} 43. a7
{[%clk 0:00:24.4]} 43... Rg8 {[%clk 0:00:42.8]} 44. Ne1 {[%clk 0:00:22]} 44...
f3 {[%clk 0:00:28.1]} 45. gxf3 {[%clk 0:00:20.8]} 45... Qg1+ {[%clk 0:00:27.9]}
46. Ke2 {[%clk 0:00:20.9]} 46... Bh4 {[%clk 0:00:27.9]} 47. cxd6 {[%clk
0:00:19.7]} 47... Rg2 {[%clk 0:00:25]} 48. Nxg2 {[%clk 0:00:18.9]} 48... Qxg2
{[%clk 0:00:22.6]} 49. a8=Q {[%clk 0:00:18.8]} 1-0

[Event "Late-Titled-Tuesday-Blitz-October-24-2023"]
[Site "Chess.com"]
[Date "2023.10.24"]
[Round "2"]
[White "Lennis93"]
[Black "Nathan_Filgueiras"]
[Result "1-0"]
[WhiteElo "2761"]
[BlackElo "2541"]
[TimeControl "180+1"]
[EndTime "14:18:59 PDT"]
[Termination "Lennis93 won by resignation"]

1. e4 {[%clk 0:03:00.9]} 1... c5 {[%clk 0:02:59.2]} 2. Nf3 {[%clk 0:03:00.8]}
2... Nc6 {[%clk 0:02:59.6]} 3. g3 {[%clk 0:02:54.8]} 3... g6 {[%clk 0:02:59.1]}
4. Bg2 {[%clk 0:02:54.7]} 4... Bg7 {[%clk 0:02:59.8]} 5. O-O {[%clk 0:02:55]}
5... e6 {[%clk 0:03:00.3]} 6. c3 {[%clk 0:02:53.6]} 6... Nge7 {[%clk 0:02:59.7]}
7. d4 {[%clk 0:02:53.6]} 7... cxd4 {[%clk 0:03:00.3]} 8. cxd4 {[%clk 0:02:54.5]}
8... d5 {[%clk 0:02:59.3]} 9. e5 {[%clk 0:02:53.6]} 9... O-O {[%clk 0:02:59.7]}
10. Bg5 {[%clk 0:02:52]} 10... h6 {[%clk 0:02:57.5]} 11. Bf4 {[%clk 0:02:49.9]}
11... g5 {[%clk 0:02:23.9]} 12. Bc1 {[%clk 0:02:46.5]} 12... f6 {[%clk
0:02:21.4]} 13. exf6 {[%clk 0:02:40.6]} 13... Bxf6 {[%clk 0:02:22.3]} 14. h3
{[%clk 0:02:38.1]} 14... Nf5 {[%clk 0:02:22.2]} 15. Nc3 {[%clk 0:02:30.1]} 15...
Nfxd4 {[%clk 0:02:19.6]} 16. Nxd4 {[%clk 0:02:30.3]} 16... Bxd4 {[%clk
0:02:19.4]} 17. Qh5 {[%clk 0:02:18.7]} 17... Qf6 {[%clk 0:02:15.7]} 18. h4
{[%clk 0:02:01.7]} 18... gxh4 {[%clk 0:02:03.2]} 19. Bxh6 {[%clk 0:01:58.3]}
19... hxg3 {[%clk 0:01:30.7]} 20. Bxf8 {[%clk 0:01:54.4]} 20... gxf2+ {[%clk
0:01:31]} 21. Kh1 {[%clk 0:01:51.8]} 21... Qxf8 {[%clk 0:01:31]} 22. Rad1 {[%clk
0:01:19]} 22... Bd7 {[%clk 0:01:26.6]} 23. Rd3 {[%clk 0:01:14.1]} 23... Qg7
{[%clk 0:01:18.8]} 24. Nxd5 {[%clk 0:00:57.8]} 24... Qh7 {[%clk 0:00:31.4]} 25.
Nf6+ {[%clk 0:00:25.9]} 25... Bxf6 {[%clk 0:00:28]} 26. Qxh7+ {[%clk 0:00:26.1]}
26... Kxh7 {[%clk 0:00:28.9]} 27. Rxd7+ {[%clk 0:00:25.5]} 27... Kg6 {[%clk
0:00:29.6]} 28. Be4+ {[%clk 0:00:20.4]} 28... Kg5 {[%clk 0:00:29.5]} 29. Rxf2
{[%clk 0:00:20.1]} 29... Rh8+ {[%clk 0:00:30]} 30. Kg2 {[%clk 0:00:20.2]} 30...
Be5 {[%clk 0:00:24]} 31. Rxb7 {[%clk 0:00:18.2]} 31... Nd4 {[%clk 0:00:23.1]}
32. Rxa7 {[%clk 0:00:15.6]} 32... Nf5 {[%clk 0:00:19.5]} 33. Ra5 {[%clk
0:00:14.6]} 33... Bf4 {[%clk 0:00:17.8]} 34. Bxf5 {[%clk 0:00:14.2]} 34... exf5
{[%clk 0:00:18.7]} 35. b4 {[%clk 0:00:13.1]} 35... Rh2+ {[%clk 0:00:18]} 36. Kg1
{[%clk 0:00:12.5]} 36... Rh3 {[%clk 0:00:16.9]} 37. b5 {[%clk 0:00:12.3]} 37...
Be3 {[%clk 0:00:16.6]} 38. Kg2 {[%clk 0:00:11.1]} 38... Kg4 {[%clk 0:00:15.2]}
39. Ra4+ {[%clk 0:00:06]} 39... f4 {[%clk 0:00:14.9]} 40. Rfxf4+ {[%clk
0:00:06.6]} 40... Bxf4 {[%clk 0:00:14.5]} 41. Rxf4+ {[%clk 0:00:07.5]} 41...
Kxf4 {[%clk 0:00:15]} 42. Kxh3 {[%clk 0:00:08.2]} 1-0

[Event "Late-Titled-Tuesday-Blitz-October-24-2023"]
[Site "Chess.com"]
[Date "2023.10.24"]
[Round "2"]
[White "becemix"]
[Black "cthake"]
[Result "1/2-1/2"]
[WhiteElo "2399"]
[BlackElo "1927"]
[TimeControl "180+1"]
[EndTime "14:18:59 PDT"]
[Termination "Game drawn by repetition"]

1. d4 {[%clk 0:03:00.9]} 1... e6 {[%clk 0:02:54.4]} 2. Nc3 {[%clk 0:03:00.5]}
2... b6 {[%clk 0:02:54]} 3. Nf3 {[%clk 0:03:00.2]} 3... Bb7 {[%clk 0:02:54]} 4.
Bf4 {[%clk 0:02:59.7]} 4... d6 {[%clk 0:02:48.2]} 5. e4 {[%clk 0:02:53.2]} 5...
Ne7 {[%clk 0:02:36.1]} 6. Bd3 {[%clk 0:02:51]} 6... Ng6 {[%clk 0:02:35.3]} 7.
Be3 {[%clk 0:02:37.7]} 7... Be7 {[%clk 0:02:31.2]} 8. O-O {[%clk 0:02:37.3]}
8... O-O {[%clk 0:02:26.9]} 9. Nd2 {[%clk 0:02:30.5]} 9... Nd7 {[%clk
0:02:26.7]} 10. f4 {[%clk 0:02:30.1]} 10... f5 {[%clk 0:02:23.8]} 11. Qh5 {[%clk
0:02:19.3]} 11... fxe4 {[%clk 0:02:07.8]} 12. Ncxe4 {[%clk 0:02:15.7]} 12... Nf6
{[%clk 0:02:05.6]} 13. Qh3 {[%clk 0:02:12.3]} 13... Nxe4 {[%clk 0:02:04.9]} 14.
Bxe4 {[%clk 0:02:06.3]} 14... Bxe4 {[%clk 0:02:02.2]} 15. Qxe6+ {[%clk
0:02:04.7]} 15... Kh8 {[%clk 0:02:00.9]} 16. Qxe4 {[%clk 0:02:05.3]} 16... Qd7
{[%clk 0:01:58.6]} 17. f5 {[%clk 0:02:00.2]} 17... Nh4 {[%clk 0:01:55.2]} 18.
Rae1 {[%clk 0:01:35.1]} 18... Nxf5 {[%clk 0:01:49.8]} 19. Bf4 {[%clk 0:01:31.3]}
19... Rae8 {[%clk 0:01:47.6]} 20. Qd3 {[%clk 0:01:29.3]} 20... g6 {[%clk
0:01:41.7]} 21. Nf3 {[%clk 0:01:28.2]} 21... Nh4 {[%clk 0:01:37.6]} 22. Bg3
{[%clk 0:01:27.2]} 22... Nxf3+ {[%clk 0:01:36.7]} 23. Rxf3 {[%clk 0:01:27.7]}
23... Rxf3 {[%clk 0:01:36.8]} 24. Qxf3 {[%clk 0:01:28.4]} 24... Rf8 {[%clk
0:01:36.7]} 25. Qe4 {[%clk 0:01:28.4]} 25... Bf6 {[%clk 0:01:35.2]} 26. c3
{[%clk 0:01:27.7]} 26... Bg7 {[%clk 0:01:32.9]} 27. Qe7 {[%clk 0:01:26.3]} 27...
Qc6 {[%clk 0:01:28.3]} 28. h3 {[%clk 0:01:16.8]} 28... a5 {[%clk 0:01:27.8]} 29.
Re2 {[%clk 0:01:14.1]} 29... Qc4 {[%clk 0:01:27.7]} 30. Rf2 {[%clk 0:01:13.8]}
30... Kg8 {[%clk 0:01:09.2]} 31. Rxf8+ {[%clk 0:01:09.6]} 31... Bxf8 {[%clk
0:01:08.7]} 32. Qe8 {[%clk 0:01:00]} 32... Qxa2 {[%clk 0:01:02.3]} 33. Bh4
{[%clk 0:01:00.4]} 33... Qb1+ {[%clk 0:00:59.5]} 34. Kh2 {[%clk 0:00:59.8]}
34... Qf5 {[%clk 0:00:56.4]} 35. Qd8 {[%clk 0:00:42.9]} 35... Qf7 {[%clk
0:00:54.9]} 36. Bf6 {[%clk 0:00:40.2]} 36... h5 {[%clk 0:00:52.1]} 37. g4 {[%clk
0:00:30.4]} 37... hxg4 {[%clk 0:00:51.2]} 38. hxg4 {[%clk 0:00:31.3]} 38... a4
{[%clk 0:00:50.1]} 39. g5 {[%clk 0:00:30.4]} 39... b5 {[%clk 0:00:48.5]} 40. Kg3
{[%clk 0:00:29.8]} 40... c5 {[%clk 0:00:48.5]} 41. dxc5 {[%clk 0:00:27.4]} 41...
dxc5 {[%clk 0:00:48.7]} 42. Qc8 {[%clk 0:00:24.7]} 42... b4 {[%clk 0:00:47.5]}
43. cxb4 {[%clk 0:00:22.9]} 43... cxb4 {[%clk 0:00:47.7]} 44. Qh3 {[%clk
0:00:18]} 44... Bg7 {[%clk 0:00:45.4]} 45. Qc8+ {[%clk 0:00:17.3]} 45... Bf8
{[%clk 0:00:45.4]} 46. Qb8 {[%clk 0:00:15.3]} 46... a3 {[%clk 0:00:44.3]} 47.
bxa3 {[%clk 0:00:14.2]} 47... bxa3 {[%clk 0:00:44.5]} 48. Qa8 {[%clk 0:00:13.6]}
48... a2 {[%clk 0:00:44.1]} 49. Kf4 {[%clk 0:00:13.5]} 49... Qc4+ {[%clk
0:00:42.4]} 50. Kg3 {[%clk 0:00:13]} 50... Qb3+ {[%clk 0:00:41.4]} 51. Kf4
{[%clk 0:00:13.4]} 51... Qc4+ {[%clk 0:00:41.7]} 52. Kg3 {[%clk 0:00:13.7]}
52... Qb3+ {[%clk 0:00:41.5]} 53. Kg4 {[%clk 0:00:12.9]} 53... Qe6+ {[%clk
0:00:40.9]} 54. Kf3 {[%clk 0:00:13.6]} 54... Qb3+ {[%clk 0:00:36.9]} 55. Kf4
{[%clk 0:00:11.8]} 55... Qc4+ {[%clk 0:00:34.4]} 1/2-1/2

[Event "Late-Titled-Tuesday-Blitz-October-24-2023"]
[Site "Chess.com"]
[Date "2023.10.24"]
[Round "2"]
[White "eljanov"]
[Black "StellarChessPro"]
[Result "0-1"]
[WhiteElo "2788"]
[BlackElo "2574"]
[TimeControl "180+1"]
[EndTime "14:19:02 PDT"]
[Termination "StellarChessPro won on time"]

1. d4 {[%clk 0:03:00.9]} 1... a6 {[%clk 0:03:00.9]} 2. e4 {[%clk 0:02:59.6]}
2... c6 {[%clk 0:03:01.2]} 3. c3 {[%clk 0:02:53]} 3... d5 {[%clk 0:03:01.3]} 4.
e5 {[%clk 0:02:53.4]} 4... Bf5 {[%clk 0:03:01.2]} 5. Ne2 {[%clk 0:02:49.2]} 5...
e6 {[%clk 0:03:01.5]} 6. Ng3 {[%clk 0:02:49.4]} 6... Bg6 {[%clk 0:03:01.9]} 7.
h4 {[%clk 0:02:49.7]} 7... h6 {[%clk 0:03:02.5]} 8. h5 {[%clk 0:02:49.9]} 8...
Bh7 {[%clk 0:03:03]} 9. Bd3 {[%clk 0:02:50.2]} 9... Bxd3 {[%clk 0:03:03.7]} 10.
Qxd3 {[%clk 0:02:51.1]} 10... Nd7 {[%clk 0:03:04.6]} 11. f4 {[%clk 0:02:48.2]}
11... c5 {[%clk 0:03:04.2]} 12. f5 {[%clk 0:02:44.8]} 12... cxd4 {[%clk
0:03:04.8]} 13. cxd4 {[%clk 0:02:44.6]} 13... Bb4+ {[%clk 0:02:57.4]} 14. Nc3
{[%clk 0:02:39.6]} 14... Ne7 {[%clk 0:02:55.2]} 15. O-O {[%clk 0:02:36.7]} 15...
Qb6 {[%clk 0:02:52.1]} 16. Bd2 {[%clk 0:02:15.8]} 16... Nxe5 {[%clk 0:02:50.7]}
17. Qe2 {[%clk 0:02:11.7]} 17... Nc4 {[%clk 0:02:47]} 18. Bf4 {[%clk 0:01:50.8]}
18... Qxd4+ {[%clk 0:02:38.7]} 19. Kh2 {[%clk 0:01:51.2]} 19... Qb6 {[%clk
0:02:25.5]} 20. Na4 {[%clk 0:01:44.4]} 20... Qc6 {[%clk 0:02:23.6]} 21. b3
{[%clk 0:01:44.9]} 21... O-O {[%clk 0:02:20.9]} 22. fxe6 {[%clk 0:01:35.6]}
22... fxe6 {[%clk 0:02:12.5]} 23. bxc4 {[%clk 0:01:35.8]} 23... Qxa4 {[%clk
0:02:12.7]} 24. Qxe6+ {[%clk 0:01:35.9]} 24... Kh8 {[%clk 0:02:13]} 25. Bxh6
{[%clk 0:01:23.3]} 25... Qc6 {[%clk 0:02:01.6]} 26. Qxc6 {[%clk 0:01:06.2]}
26... bxc6 {[%clk 0:01:59.3]} 27. Bg5 {[%clk 0:01:06.2]} 27... dxc4 {[%clk
0:01:55.7]} 28. Rfc1 {[%clk 0:00:53.9]} 28... Nf5 {[%clk 0:01:36.9]} 29. Rxc4
{[%clk 0:00:45.6]} 29... Bd6 {[%clk 0:01:33.9]} 30. Bf4 {[%clk 0:00:45.9]} 30...
Bxf4 {[%clk 0:01:27.2]} 31. Rxf4 {[%clk 0:00:45.4]} 31... Nxg3 {[%clk 0:01:28]}
32. Kxg3 {[%clk 0:00:44.8]} 32... Rxf4 {[%clk 0:01:27.2]} 33. Kxf4 {[%clk
0:00:45.1]} 33... Rf8+ {[%clk 0:01:28.1]} 34. Ke5 {[%clk 0:00:41.5]} 34... Kh7
{[%clk 0:01:21.2]} 35. Kd6 {[%clk 0:00:31.3]} 35... Rf6+ {[%clk 0:01:19.1]} 36.
Kc5 {[%clk 0:00:31.6]} 36... Kh6 {[%clk 0:01:20]} 37. a4 {[%clk 0:00:24.2]}
37... Kxh5 {[%clk 0:01:17.4]} 38. Ra2 {[%clk 0:00:24.6]} 38... Kh4 {[%clk
0:01:11.8]} 39. a5 {[%clk 0:00:17.2]} 39... g5 {[%clk 0:01:11.2]} 40. Kb6 {[%clk
0:00:17.2]} 40... c5+ {[%clk 0:01:03.7]} 41. Kxc5 {[%clk 0:00:17.4]} 41... g4
{[%clk 0:01:04.6]} 42. Ra3 {[%clk 0:00:16.6]} 42... Rf2 {[%clk 0:00:57.5]} 43.
g3+ {[%clk 0:00:16.9]} 43... Kh3 {[%clk 0:00:57]} 44. Kb6 {[%clk 0:00:17.1]}
44... Rf3 {[%clk 0:00:55.3]} 45. Ra1 {[%clk 0:00:07.2]} 45... Rf6+ {[%clk
0:00:55.1]} 46. Kc5 {[%clk 0:00:07.6]} 46... Kxg3 {[%clk 0:00:56]} 47. Rb1
{[%clk 0:00:05]} 47... Kh3 {[%clk 0:00:42.7]} 48. Rb6 {[%clk 0:00:04.6]} 48...
Rf5+ {[%clk 0:00:43.2]} 49. Kb4 {[%clk 0:00:03.8]} 49... g3 {[%clk 0:00:38.2]}
50. Rxa6 {[%clk 0:00:03.3]} 50... g2 {[%clk 0:00:31.3]} 0-1

[Event "Late-Titled-Tuesday-Blitz-October-24-2023"]
[Site "Chess.com"]
[Date "2023.10.24"]
[Round "2"]
[White "koncheto"]
[Black "Fonsofan"]
[Result "1-0"]
[WhiteElo "2552"]
[BlackElo "2735"]
[TimeControl "180+1"]
[EndTime "14:19:02 PDT"]
[Termination "koncheto won on time"]

1. e4 {[%clk 0:03:00.9]} 1... c5 {[%clk 0:02:27.9]} 2. Nf3 {[%clk 0:03:00.3]}
2... Nc6 {[%clk 0:02:28.1]} 3. d4 {[%clk 0:02:59.8]} 3... cxd4 {[%clk
0:02:25.7]} 4. Nxd4 {[%clk 0:03:00.7]} 4... e5 {[%clk 0:02:24.9]} 5. Nb5 {[%clk
0:03:00.3]} 5... d6 {[%clk 0:02:25.5]} 6. c4 {[%clk 0:02:59.5]} 6... Be7 {[%clk
0:02:24.9]} 7. N1c3 {[%clk 0:02:56.9]} 7... a6 {[%clk 0:02:25.3]} 8. Na3 {[%clk
0:02:57.1]} 8... f5 {[%clk 0:02:26]} 9. exf5 {[%clk 0:02:55.4]} 9... Bxf5 {[%clk
0:02:26.9]} 10. Bd3 {[%clk 0:02:55.7]} 10... Be6 {[%clk 0:02:27.4]} 11. O-O
{[%clk 0:02:55.3]} 11... Nf6 {[%clk 0:02:28]} 12. Nc2 {[%clk 0:02:49.1]} 12...
O-O {[%clk 0:02:26.2]} 13. Bg5 {[%clk 0:02:48]} 13... Ng4 {[%clk 0:02:19.6]} 14.
Bxe7 {[%clk 0:02:40.1]} 14... Nxe7 {[%clk 0:02:20.5]} 15. h3 {[%clk 0:02:39.9]}
15... Nf6 {[%clk 0:02:12.6]} 16. Ne3 {[%clk 0:02:25.2]} 16... Rc8 {[%clk
0:02:12.3]} 17. Qd2 {[%clk 0:02:22]} 17... Qb6 {[%clk 0:02:00]} 18. Rfd1 {[%clk
0:02:09.2]} 18... Nc6 {[%clk 0:01:54.1]} 19. Bf5 {[%clk 0:02:01.8]} 19... Bxf5
{[%clk 0:01:39.9]} 20. Nxf5 {[%clk 0:02:01.1]} 20... Rcd8 {[%clk 0:01:37.3]} 21.
b3 {[%clk 0:01:49.6]} 21... g6 {[%clk 0:01:12.2]} 22. Qg5 {[%clk 0:01:13.6]}
22... Kh8 {[%clk 0:01:07.2]} 23. Nxd6 {[%clk 0:01:11.1]} 23... Qxf2+ {[%clk
0:00:45.2]} 24. Kh1 {[%clk 0:00:59.2]} 24... Nd4 {[%clk 0:00:29.1]} 25. Qxe5
{[%clk 0:00:51.7]} 25... Nf3 {[%clk 0:00:19.6]} 26. gxf3 {[%clk 0:00:21.7]}
26... Qxf3+ {[%clk 0:00:20.5]} 27. Kg1 {[%clk 0:00:21.8]} 27... Qxh3 {[%clk
0:00:20.3]} 28. Nf7+ {[%clk 0:00:18.4]} 28... Rxf7 {[%clk 0:00:20.8]} 29. Rxd8+
{[%clk 0:00:18]} 29... Kg7 {[%clk 0:00:21.7]} 30. Nd5 {[%clk 0:00:09.8]} 30...
Qg4+ {[%clk 0:00:14.6]} 31. Kf2 {[%clk 0:00:05.5]} 31... Qh4+ {[%clk 0:00:13.6]}
32. Ke2 {[%clk 0:00:04.8]} 32... Qg4+ {[%clk 0:00:04.4]} 33. Kd2 {[%clk
0:00:05]} 33... Qg2+ {[%clk 0:00:02.8]} 34. Kc3 {[%clk 0:00:05.3]} 34... Kh6
{[%clk 0:00:03.2]} 35. Nxf6 {[%clk 0:00:03.4]} 35... Qf3+ {[%clk 0:00:03.4]} 36.
Kb4 {[%clk 0:00:02.7]} 36... Rxf6 {[%clk 0:00:03.5]} 37. Rh1+ {[%clk 0:00:02.9]}
1-0